bitfinex/quotes_ETHUSD_20240924
["timestamp","ask_amount","ask_price","bid_price","bid_amount"]
[1727221326282,1.58369808,2658.9,2658.8,1.0]
[1727221326490,3.42449171,2658.9,2658.8,1.0]
[1727221326664,3.42461624,2658.9,2658.8,1.0]
[1727221327564,3.42461624,2658.9,2658.8,4.76109]
[1727221327989,3.42461624,2658.9,2658.8,1.0]
[1727221328189,2.64211816,2658.9,2658.8,1.0]
[1727221328397,3.42461624,2658.9,2658.8,1.0]
[1727221329274,3.8844652,2658.9,2658.8,1.0]
[1727221330473,3.10196712,2658.9,2658.6,3.61798099]
[1727221330673,1.84091816,2658.8,2658.6,3.61798099]
[1727221330900,2.0398117,2658.9,2658.6,3.61798099]
[1727221331095,2.61125796,2658.8,2658.6,3.61798099]
[1727221331302,0.77876274,2658.8,2658.6,3.61798099]
[1727221331703,2.6108439,2658.8,2658.6,3.61798099]
[1727221332006,0.77876274,2658.8,2658.7,0.07761624]
[1727221332568,1.26104896,2658.9,2658.7,0.07761624]
[1727221332569,2.77236647,2658.9,2658.7,0.07761624]
[1727221332772,2.61014967,2658.8,2658.7,0.07761624]
[1727221333496,0.73255477,2658.8,2658.7,0.07761624]
[1727221333912,1.83048039,2658.8,2658.7,0.07761624]
[1727221334291,2.60924313,2658.8,2658.7,0.07761624]
[1727221336316,2.61129155,2658.8,2658.7,0.07761624]
[1727221336817,2.61108613,2658.8,2658.7,3.83884624]
[1727221338521,1.83252881,2658.8,2658.7,3.83884624]
[1727221338826,2.61185036,2658.8,2658.7,3.83884624]
[1727221338992,2.61185036,2658.8,2658.7,5.89013353]
[1727221341333,2.61185036,2658.8,2658.7,6.68033353]
[1727221344532,1.83252881,2658.8,2658.7,6.68033353]
[1727221344745,2.61324495,2658.8,2658.7,6.68033353]
[1727221345731,3.01213442,2658.8,2658.7,6.68033353]
[1727221346312,1.83826103,2658.8,2658.7,6.68033353]
[1727221346505,3.01213442,2658.8,2658.7,6.68033353]
[1727221346908,1.83826103,2658.8,2658.7,6.68033353]
[1727221347134,2.62003411,2658.8,2658.7,6.68033353]
[1727221347839,2.61992806,2658.8,2658.7,6.68033353]
[1727221348037,1.83826103,2658.8,2658.7,6.68033353]
[1727221348401,2.61982186,2658.8,2658.7,6.68033353]
[1727221350417,1.83970809,2658.8,2658.7,6.68033353]
[1727221350604,0.73587926,2658.8,2658.7,6.68033353]
[1727221350941,0.73587926,2658.8,2658.7,6.7555494]
[1727221351239,0.78156083,2658.9,2658.8,3.76109]
[1727221351445,2.62113073,2658.9,2658.8,3.76109]
[1727221351602,2.62113073,2658.9,2658.8,3.8358454]
[1727221355008,1.8385311,2658.9,2658.8,3.8358454]
[1727221355206,0.73541244,2658.9,2658.8,3.8358454]
[1727221355441,0.73541244,2658.9,2658.8,5.24149977]
[1727221356007,2.62016276,2658.9,2658.8,5.24149977]
[1727221356207,1.83860193,2658.9,2658.8,5.24149977]
[1727221356431,1.83852186,2658.9,2658.8,5.24149977]
[1727221356646,0.73541244,2658.9,2658.8,5.24149977]
[1727221358048,1.17387339,2659.3,2659.2,3.76052]
[1727221358226,2.6196577,2659.3,2659.2,3.76052]
[1727221358549,2.6196577,2659.3,2659.2,3.83493623]
[1727221359314,0.73545073,2659.3,2659.2,4.78502254]
[1727221359812,0.73422181,2659.3,2659.2,4.78502254]
[1727221360033,1.83539724,2659.3,2659.2,4.78502254]
[1727221360236,1.83529266,2659.3,2659.2,4.78502254]
[1727221360562,0.73422181,2659.3,2659.2,4.78502254]
[1727221361008,1.83493793,2659.3,2659.2,4.78502254]
[1727221361213,0.73422181,2659.3,2659.2,4.78502254]
[1727221361622,0.78103087,2659.4,2659.3,3.76038]
[1727221361831,2.61556883,2659.4,2659.3,3.76038]
[1727221362020,2.61556883,2659.4,2659.3,3.83471145]
[1727221362228,2.61556883,2659.4,2659.3,5.17681591]
[1727221363357,0.73381518,2659.4,2659.3,5.17681591]
[1727221364148,2.61575546,2659.4,2659.3,5.17681591]
[1727221364335,0.73381518,2659.4,2659.3,5.17681591]
[1727221364539,0.7339237,2659.4,2659.3,5.17681591]
[1727221365383,0.73383345,2659.4,2659.3,5.17681591]
[1727221365664,0.78439302,2659.5,2659.4,3.76024]
[1727221365822,2.61885765,2659.5,2659.4,3.76024]
[1727221366021,2.61885765,2659.5,2659.4,3.83439238]
[1727221366629,1.83760845,2659.5,2659.4,3.83439238]
[1727221367231,0.737148,2659.5,2659.4,3.83439238]
[1727221367653,1.51817887,2659.5,2659.4,3.83439238]
[1727221367820,2.61849732,2659.5,2659.4,3.83439238]
[1727221368358,1.83746645,2659.5,2659.4,3.83439238]
[1727221368532,2.61849732,2659.5,2659.4,3.83439238]
[1727221368721,0.737148,2659.5,2659.4,3.83439238]
[1727221369327,0.73684311,2659.5,2659.4,3.83439238]
[1727221369557,2.61805527,2659.5,2659.4,3.83439238]
[1727221369751,0.73684311,2659.5,2659.4,3.83439238]
[1727221369960,1.51787398,2659.5,2659.4,3.83439238]
[1727221370129,0.73684311,2659.5,2659.4,3.83439238]
[1727221370656,0.00336215,2659.5,2659.4,5.17932966]
[1727221370959,0.00336215,2659.5,2659.4,5.10413106]
[1727221371162,0.00336215,2659.5,2659.4,5.17932689]
[1727221376663,0.00336215,2659.5,2659.4,5.67932689]
[1727221380673,0.00336215,2659.5,2659.4,6.17932689]
[1727221380973,0.00336215,2659.5,2659.4,4.83439238]
[1727221384257,0.73773058,2659.5,2659.4,4.83439238]
[1727221384649,2.62033596,2659.5,2659.4,4.83439238]
[1727221384972,2.62033596,2659.5,2659.4,5.33439238]
[1727221387040,2.6207933,2659.5,2659.4,5.33439238]
[1727221388987,2.6207933,2659.5,2659.4,5.83439238]
[1727221390262,1.83976243,2659.5,2659.4,5.83439238]
[1727221390475,2.61890914,2659.5,2659.4,5.83439238]
[1727221390867,1.83976243,2659.5,2659.4,5.83439238]
[1727221391981,1.84078875,2659.5,2659.4,5.83439238]
[1727221392292,3.01466214,2659.5,2659.4,5.83439238]
[1727221392468,1.84078875,2659.5,2659.4,5.83439238]
[1727221392651,2.62015668,2659.5,2659.4,5.83439238]
[1727221392851,1.84078875,2659.5,2659.4,6.33439238]
[1727221393116,2.62015451,2659.5,2659.4,6.33439238]
[1727221393269,3.01466214,2659.5,2659.4,6.33439238]
[1727221393656,1.84078875,2659.5,2659.4,6.33439238]
[1727221393892,3.01466214,2659.5,2659.4,6.33439238]
[1727221394195,2.62008814,2659.5,2659.4,6.33439238]
[1727221394405,2.62024031,2659.5,2659.4,6.33439238]
[1727221394701,1.84078875,2659.5,2659.4,6.33439238]
[1727221395119,3.01466214,2659.5,2659.4,6.33439238]
[1727221395902,1.84078875,2659.5,2659.4,6.33439238]
[1727221396597,1.84287485,2659.5,2659.4,6.33439238]
[1727221396935,3.82484824,2659.5,2659.4,6.33439238]
[1727221400200,5.6883128,2659.5,2659.4,2.57415238]
[1727221401095,3.01320169,2659.5,2659.4,7.44946926]
[1727221401296,3.01436395,2659.5,2659.4,8.0829205]
[1727221401606,1.84403711,2659.5,2659.4,8.0829205]
[1727221401810,2.62444898,2659.5,2659.4,8.0829205]
[1727221402137,1.83994826,2659.5,2659.4,8.0829205]
[1727221402339,2.62052366,2659.5,2659.4,8.0829205]
[1727221410693,2.62198135,2659.5,2659.4,8.0829205]
[1727221411552,1.84156948,2659.5,2659.4,8.0829205]
[1727221412715,2.62317645,2659.5,2659.4,8.0829205]
[1727221413712,2.62296646,2659.5,2659.4,8.0829205]
[1727221413897,1.84156948,2659.5,2659.4,8.0829205]
[1727221414279,2.62283926,2659.5,2659.4,8.0829205]
[1727221414484,2.62282767,2659.5,2659.4,8.0829205]
[1727221415120,2.62281041,2659.5,2659.4,8.0829205]
[1727221415763,1.84156948,2659.5,2659.4,8.0829205]
[1727221415897,2.62284003,2659.5,2659.4,8.0829205]
[1727221420348,2.6227656,2659.5,2659.4,8.0829205]
[1727221420653,1.84149505,2659.5,2659.4,8.0829205]
[1727221421347,3.01182189,2659.5,2659.4,8.0829205]
[1727221421753,1.84149505,2659.5,2659.4,8.0829205]
[1727221422567,3.01182189,2659.5,2659.4,8.0829205]
[1727221423957,1.84149505,2659.5,2659.4,8.0829205]
[1727221424158,3.01182189,2659.5,2659.4,8.0829205]
[1727221424527,1.84149505,2659.5,2659.4,8.0829205]
[1727221424758,3.01182189,2659.5,2659.4,8.0829205]
[1727221425136,3.01193397,2659.5,2659.4,8.0829205]
[1727221425361,1.84160713,2659.5,2659.4,8.0829205]
[1727221425657,3.01193397,2659.5,2659.4,6.33439238]
[1727221425871,5.63000313,2659.5,2659.4,2.57415238]
[1727221426033,4.0649151,2659.5,2659.4,2.57415238]
[1727221426243,6.01921736,2659.5,2659.4,2.57415238]
[1727221426427,6.6211391,2659.5,2659.4,2.57415238]
[1727221426785,6.6211391,2659.5,2659.4,1.24501854]
[1727221428369,9.54201372,2659.5,2659.4,1.24501854]
[1727221428666,9.54201372,2659.5,2659.4,1.17873386]
[1727221428667,11.36951506,2659.5,2659.4,1.17873386]
[1727221429682,11.36951506,2659.5,2658.4,4.87663688]
[1727221429683,4.51351,2659.0,2658.4,4.87663688]
[1727221429838,0.78106989,2658.6,2658.4,4.87663688]
[1727221430038,0.78106989,2658.6,2658.5,0.06721907]
[1727221430367,0.78106989,2658.7,2658.6,3.76137]
[1727221430571,0.72549927,2658.7,2658.6,3.76137]
[1727221430735,1.81393398,2658.7,2658.6,3.82859828]
[1727221430936,0.72557359,2658.7,2658.6,3.82859828]
[1727221431871,0.72557359,2658.7,2658.6,4.94367516]
[1727221432176,0.78106989,2658.9,2658.6,9.57549268]
[1727221432373,2.59474621,2658.8,2658.6,8.70496516]
[1727221432535,2.59474621,2658.8,2658.7,3.76123]
[1727221432536,0.78106989,2658.8,2658.7,3.76123]
[1727221432737,1.50652718,2658.8,2658.7,3.82837346]
[1727221432937,2.59471312,2658.8,2658.7,3.82837346]
[1727221433178,0.72545729,2658.8,2658.7,3.82837346]
[1727221434271,0.78106989,2658.9,2658.7,3.82837346]
[1727221434474,0.72518906,2658.8,2658.7,3.82837346]
[1727221434691,0.72519734,2658.8,2658.7,3.82837346]
[1727221435257,0.78106989,2658.9,2658.7,3.82837346]
[1727221435453,1.53376989,2659.0,2658.7,3.82837346]
[1727221435707,2.59377079,2658.9,2658.7,3.82837346]
[1727221435911,1.53376989,2659.0,2658.7,3.82837346]
[1727221436064,2.59380482,2658.9,2658.7,3.82837346]
[1727221436257,1.53376989,2659.0,2658.7,3.82837346]
[1727221436588,2.5935121,2658.9,2658.7,3.82837346]
[1727221436794,0.78106989,2658.9,2658.7,3.82837346]
[1727221437012,1.5060955,2658.9,2658.8,3.76109]
[1727221437162,0.78106989,2659.1,2658.9,3.76095]
[1727221437356,0.7250296,2659.0,2658.9,3.76095]
[1727221437552,0.78106989,2659.1,2659.0,0.06715432]
[1727221437893,2.59397962,2659.1,2658.9,3.82818912]
[1727221438096,0.78106989,2659.1,2659.0,0.06715432]
[1727221438386,2.59397369,2659.1,2659.0,0.06715432]
[1727221438792,3.90836706,2659.1,2659.0,0.06715432]
[1727221438997,0.7839,2659.0,2658.4,3.76155]
[1727221439297,0.78010812,2658.7,2658.4,3.76155]
[1727221439481,0.78010812,2658.7,2658.5,0.06531867]
[1727221439482,2.59271632,2658.7,2658.5,0.06531867]
[1727221439683,0.78010812,2658.7,2658.5,0.06531867]
[1727221439860,1.50516482,2658.7,2658.5,0.06531867]
[1727221440056,3.11720805,2658.8,2658.5,0.06531867]
[1727221440057,1.56400812,2658.8,2658.5,0.06531867]
[1727221440257,0.72511083,2658.7,2658.5,3.82682867]
[1727221440462,0.72511083,2658.7,2658.6,3.76137]
[1727221440687,0.7839,2658.8,2658.7,3.76123]
[1727221440891,0.78010812,2659.0,2658.7,4.87630688]
[1727221440892,1.56400812,2659.0,2658.7,4.87630688]
[1727221441094,1.56400812,2659.0,2658.8,3.76109]
[1727221441095,0.72503837,2658.9,2658.8,3.76109]
[1727221441282,1.56400812,2659.0,2658.8,3.76109]
[1727221441597,0.7839,2659.0,2658.8,3.82615423]
[1727221441758,0.78010812,2659.1,2659.0,3.76081]
[1727221441960,0.72478615,2659.1,2659.0,3.76081]
[1727221442190,1.56400812,2659.2,2659.1,3.76067]
[1727221442191,0.7839,2659.2,2659.1,3.76067]
[1727221442365,0.78010812,2659.4,2659.2,3.76039]
[1727221442576,0.00336215,2659.5,2659.3,3.76026]
[1727221442577,0.78347027,2659.5,2659.3,3.76026]
[1727221442892,2.59672328,2659.5,2659.3,3.82490028]
[1727221443095,0.78347027,2659.5,2659.4,3.76024]
[1727221443284,1.50860962,2659.5,2659.4,3.76024]
[1727221443494,2.59631865,2659.5,2659.4,3.82479551]
[1727221445196,1.81621053,2659.5,2659.4,0.06455551]
[1727221445402,2.59631865,2659.5,2659.4,0.06455551]
[1727221445569,2.59631865,2659.5,2659.3,3.76038]
[1727221445774,0.78347027,2659.5,2659.4,0.06455551]
[1727221445960,1.81613215,2659.5,2659.4,3.82479551]
[1727221446165,0.00336215,2659.5,2659.4,3.82479551]
[1727221447291,0.00336215,2659.5,2659.4,7.04441398]
[1727221447464,0.00336215,2659.5,2659.4,10.04441398]
[1727221449291,0.00336215,2659.5,2659.4,10.83221398]
[1727221452279,0.00336215,2659.5,2659.4,11.38221398]
[1727221461414,0.00336215,2659.5,2659.4,10.83221398]
[1727221461610,0.00336215,2659.5,2659.4,7.63209066]
[1727221463451,0.00336215,2659.5,2659.4,6.82479551]
[1727221464431,0.80306215,2659.5,2659.4,0.06455551]
[1727221465833,0.80306215,2659.5,2659.3,3.76038]
[1727221466041,0.80306215,2659.5,2659.4,0.06375189]
[1727221466475,0.80306215,2659.5,2659.4,3.82399189]
[1727221468138,0.00336215,2659.5,2659.4,3.82399189]
[1727221468335,0.00336215,2659.5,2659.4,4.58242808]
[1727221469866,0.00336215,2659.5,2659.4,3.82399189]
[1727221470374,0.00336215,2659.5,2659.4,0.06375189]
[1727221472689,0.80306215,2659.5,2659.4,0.06375189]
[1727221474601,5.28863183,2659.5,2659.4,0.06375189]
[1727221474810,0.7997,2659.4,2659.0,3.76078]
[1727221475009,0.7997,2659.3,2659.0,3.76078]
[1727221476882,0.7997,2659.3,2658.9,3.7609]
[1727221477205,0.7997,2659.3,2658.7,3.76114]
[1727221477206,0.7997,2659.1,2658.7,7.52229]
[1727221477368,0.7997,2659.1,2658.7,3.76114]
[1727221477567,0.7997,2659.1,2658.8,3.76099]
[1727221477773,0.7997,2659.1,2659.0,3.76081]
[1727221481215,1.52605544,2659.1,2659.0,3.76081]
[1727221481656,1.52605544,2659.1,2658.8,3.761]
[1727221481862,0.7997,2659.1,2658.8,7.52201]
[1727221482154,0.7997,2659.1,2658.8,3.761]
[1727221482357,0.7997,2659.1,2658.9,0.06247255]
[1727221482558,1.57980812,2659.1,2658.9,0.06247255]
[1727221482716,0.7997,2659.1,2658.9,0.06247255]
[1727221482915,1.57980812,2659.1,2658.9,0.06247255]
[1727221483528,0.7997,2659.1,2658.9,0.06247255]
[1727221483728,1.57980812,2659.1,2658.9,0.06247255]
[1727221484034,0.7997,2659.1,2658.9,0.06247255]
[1727221484345,1.57980812,2659.1,2658.9,0.06247255]
[1727221484549,0.7997,2659.1,2658.9,0.06247255]
[1727221485271,0.72696725,2659.0,2658.9,0.06247255]
[1727221485471,1.57980812,2659.1,2658.9,0.06247255]
[1727221485628,0.7997,2659.1,2658.9,0.06247255]
[1727221486660,1.57980812,2659.1,2658.9,3.82342255]
[1727221487633,0.7997,2659.1,2658.9,3.82342255]
[1727221488134,1.57980812,2659.1,2658.9,0.06247255]
[1727221488361,0.7270781,2659.0,2658.9,0.06247255]
[1727221488534,2.15284134,2659.1,2658.9,0.06247255]
[1727221488730,0.72701819,2659.0,2658.9,0.06247255]
[1727221488949,1.50712631,2659.0,2658.9,0.06247255]
[1727221489142,1.50712631,2659.0,2658.6,6.7613]
[1727221489143,2.59754709,2659.0,2658.6,3.7613]
[1727221489349,5.73058218,2659.1,2658.9,0.06281753]
[1727221489575,1.81721601,2659.0,2658.6,3.7613]
[1727221489757,2.59808845,2659.0,2658.6,3.7613]
[1727221489963,0.7268864,2658.9,2658.6,3.7613]
[1727221490263,0.78087244,2659.0,2658.6,3.7613]
[1727221490479,3.78097228,2659.0,2658.6,3.7613]
[1727221490771,1.96410153,2659.0,2658.6,3.7613]
[1727221492580,1.18322909,2659.0,2658.7,3.76121]
[1727221496979,1.18322909,2659.0,2658.8,0.06290233]
[1727221498068,1.58057244,2659.1,2658.8,0.06290233]
[1727221498695,1.58057244,2659.1,2658.8,3.82394233]
[1727221499000,0.7997,2659.1,2658.9,3.76094]
[1727221499388,1.58057244,2659.1,2659.0,0.06273273]
[1727221499589,2.17680764,2659.1,2658.9,3.75303547]
[1727221499896,1.45081146,2659.1,2659.0,0.06064164]
[1727221500068,2.1766091,2659.1,2659.0,0.06064164]
[1727221500765,4.04685864,2659.1,2658.7,3.76113]
[1727221500969,2.2316839,2659.1,2658.7,3.76113]
[1727221501186,2.2316839,2659.1,2658.8,0.06091507]
[1727221501380,2.2316839,2659.1,2658.8,3.82199507]
[1727221501685,1.58057244,2659.1,2658.8,3.82199507]
[1727221501881,1.58057244,2659.1,2658.8,0.06091507]
[1727221502586,1.58057244,2659.1,2658.8,3.82197507]
[1727221503571,0.7262906,2659.0,2658.8,3.82197507]
[1727221503981,1.58057244,2659.1,2658.8,3.82197507]
[1727221504188,0.72624741,2659.0,2658.8,3.82197507]
[1727221504408,1.58057244,2659.1,2658.8,3.82197507]
[1727221504725,0.72645156,2659.0,2658.8,3.82197507]
[1727221504897,0.78087244,2659.2,2659.1,3.76067]
[1727221505210,1.17016218,2659.3,2659.1,3.76067]
[1727221505211,0.78087244,2659.3,2659.1,3.76067]
[1727221505429,0.72650884,2659.3,2659.2,0.7533]
[1727221505606,1.17352433,2659.5,2659.2,0.7533]
[1727221505607,0.00336215,2659.5,2659.4,3.76024]
[1727221505788,0.00336215,2659.5,2659.4,0.0603561]
[1727221506003,1.51092326,2659.5,2659.4,0.0603561]
[1727221506205,2.60095627,2659.5,2659.4,0.0603561]
[1727221506621,2.60095627,2659.5,2659.4,0.06035275]
[1727221506829,2.99134886,2659.5,2659.4,0.06035275]
[1727221507133,0.811,2659.4,2659.1,3.76063]
[1727221507293,2.59746312,2659.3,2659.1,3.76063]
[1727221507492,0.72710459,2659.2,2659.1,3.76063]
[1727221508423,0.77996091,2659.3,2659.1,3.76063]
[1727221509537,1.81774569,2659.2,2659.1,3.76063]
[1727221509775,2.59768179,2659.2,2659.1,3.76063]
[1727221509925,0.7271047,2659.2,2659.1,3.76063]
[1727221510643,0.77996091,2659.3,2659.1,3.76063]
[1727221510940,0.77996091,2659.4,2659.3,3.76038]
[1727221511114,2.59719791,2659.4,2659.3,3.76038]
[1727221511300,1.817237,2659.4,2659.3,3.76038]
[1727221511503,2.59723858,2659.4,2659.3,3.76038]
[1727221511932,2.59723858,2659.4,2659.3,3.82065338]
[1727221512312,2.59730578,2659.4,2659.3,3.82065338]
[1727221512511,0.72691107,2659.4,2659.3,3.82065338]
[1727221512729,2.59728973,2659.4,2659.3,3.82065338]
[1727221513112,2.59733644,2659.4,2659.3,3.82065338]
[1727221513436,1.81751326,2659.4,2659.3,3.82065338]
[1727221513642,2.59747417,2659.4,2659.3,3.82065338]
[1727221514028,1.81751326,2659.4,2659.3,3.82065338]
[1727221514326,2.59773703,2659.4,2659.3,3.82065338]
[1727221514930,0.00336215,2659.5,2659.4,3.76024]
[1727221515444,0.00336215,2659.5,2659.4,3.82042861]
[1727221515802,0.73082248,2659.5,2659.4,3.82042861]
[1727221516004,0.00336215,2659.5,2659.4,3.82042861]
[1727221516343,0.7308122,2659.5,2659.4,3.82042861]
[1727221516518,0.73079767,2659.5,2659.4,3.82042861]
[1727221516713,0.00336215,2659.5,2659.4,5.1067732]
[1727221521755,0.00336215,2659.5,2659.4,6.9838379]
[1727221522544,0.00336215,2659.5,2659.4,4.58442861]
[1727221522746,0.00336215,2659.5,2659.4,3.82042861]
[1727221528644,0.00336215,2659.5,2659.4,4.93349331]
[1727221528967,0.00336215,2659.5,2659.4,3.82042861]
[1727221536579,0.00336215,2659.5,2659.4,4.32042861]
[1727221539353,0.77576215,2659.5,2659.4,4.32042861]
[1727221539561,1.50462503,2659.5,2659.4,4.32042861]
[1727221540088,1.50476898,2659.5,2659.4,4.32042861]
[1727221540287,2.5983211,2659.5,2659.4,4.32042861]
[1727221540584,3.37828201,2659.5,2659.4,1.06018861]
[1727221540887,4.2233277,2659.5,2659.4,0.05790773]
[1727221541082,4.51098655,2659.5,2659.2,3.76046]
[1727221541247,0.7549,2659.3,2659.2,3.76046]
[1727221541450,3.358703,2659.3,2659.2,3.76046]
[1727221541883,3.358703,2659.3,2659.2,3.81853728]
[1727221543668,3.35910052,2659.3,2659.2,3.81853728]
[1727221544485,2.59711583,2659.3,2659.2,3.81853728]
[1727221545295,1.81573173,2659.3,2659.2,3.81853728]
[1727221545469,2.59711583,2659.3,2659.2,3.81853728]
[1727221546169,0.72629269,2659.3,2659.2,4.93160198]
[1727221546370,0.7813841,2659.4,2659.3,3.76038]
[1727221546586,0.78474625,2659.5,2659.4,3.76024]
[1727221546785,0.7300371,2659.5,2659.4,5.02923992]
[1727221547005,0.7300371,2659.5,2659.4,5.08734185]
[1727221547514,2.60128992,2659.5,2659.4,5.08734185]
[1727221549187,2.60192918,2659.5,2659.4,5.08734185]
[1727221550116,2.60192918,2659.5,2659.4,3.81834193]
[1727221550315,3.74692496,2659.5,2659.4,0.05810193]
[1727221550469,4.03022731,2659.5,2659.4,0.05810193]
[1727221550674,3.74947403,2659.5,2659.4,0.05810193]
[1727221551086,3.75095116,2659.5,2659.4,0.05810193]
[1727221551488,4.03186889,2659.5,2659.4,0.05810193]
[1727221552025,5.59208513,2659.5,2659.4,0.05810193]
[1727221553921,5.59227532,2659.5,2659.4,0.05810193]
[1727221557690,4.03205908,2659.5,2659.4,0.05810193]
[1727221558095,5.59950103,2659.5,2659.4,0.05810193]
[1727221558330,5.60012687,2659.5,2659.4,0.05810193]
[1727221558640,2.21320883,2659.5,2659.4,0.05810193]
[1727221558839,5.60264371,2659.5,2659.4,0.05810193]
[1727221560727,4.03471869,2659.5,2659.4,0.05810193]
[1727221560932,5.99462496,2659.5,2659.4,0.05810193]
[1727221561539,4.03471869,2659.5,2659.4,0.05810193]
[1727221561839,5.60294179,2659.5,2659.4,0.05810193]
[1727221562040,5.60323979,2659.5,2659.4,0.05810193]
[1727221565150,4.84833979,2659.5,2659.4,3.81834193]
[1727221565543,3.00155567,2659.5,2659.4,3.81834193]
[1727221565910,3.28245343,2659.5,2659.4,3.81834193]
[1727221566136,3.28237484,2659.5,2659.4,3.81834193]
[1727221566767,3.28226139,2659.5,2659.4,3.81834193]
[1727221567071,3.28240679,2659.5,2659.4,3.81834193]
[1727221567639,4.85062989,2659.5,2659.4,3.81834193]
[1727221567963,3.39327966,2659.5,2659.4,3.81834193]
[1727221568288,4.85062989,2659.5,2659.4,3.81834193]
[1727221570881,3.39327966,2659.5,2659.4,3.81834193]
[1727221571175,4.85062989,2659.5,2659.4,3.81834193]
[1727221571776,4.85222591,2659.5,2659.4,3.81834193]
[1727221576491,4.8514019,2659.5,2659.4,3.81834193]
[1727221576644,3.2831788,2659.5,2659.4,3.81834193]
[1727221577058,4.85116623,2659.5,2659.4,3.81834193]
[1727221577420,3.2831788,2659.5,2659.4,3.81834193]
[1727221578040,5.84812625,2659.5,2659.4,0.05810193]
[1727221578282,4.57007,2659.4,2659.0,0.5]
[1727221578584,6.31586079,2659.5,2659.0,0.5]
[1727221578585,1.56784772,2659.1,2659.0,0.5]
[1727221578796,4.84766437,2659.1,2659.0,4.26081]
[1727221579358,2.99812165,2659.1,2659.0,6.36636817]
[1727221579993,2.99812165,2659.1,2659.0,7.15656817]
[1727221580197,0.72898657,2659.1,2659.0,10.15656817]
[1727221580394,0.78378392,2659.2,2659.1,6.76067]
[1727221580577,0.78378392,2659.2,2659.1,8.52847982]
[1727221580578,2.60040682,2659.2,2659.1,8.52847982]
[1727221580979,2.60006392,2659.2,2659.1,8.52847982]
[1727221581996,2.60006392,2659.2,2659.1,6.76067]
[1727221585894,2.60006392,2659.2,2659.1,6.81367301]
[1727221586370,0.726512,2659.2,2659.1,6.81367301]
[1727221587009,0.78378392,2659.3,2659.2,3.76052]
[1727221587206,2.60055507,2659.3,2659.2,6.27057982]
[1727221587405,2.60055507,2659.3,2659.2,6.32351814]
[1727221587605,1.81677115,2659.3,2659.2,6.32351814]
[1727221587911,2.60068714,2659.3,2659.2,6.32351814]
[1727221588887,2.60068714,2659.3,2659.2,9.32351814]
[1727221589699,2.60068714,2659.3,2659.2,8.21045344]
[1727221590731,2.60164384,2659.3,2659.2,8.21045344]
[1727221591729,2.60164384,2659.3,2659.2,9.32351814]
[1727221595191,2.60164384,2659.3,2659.2,8.21045344]
[1727221595392,2.60748315,2659.3,2659.2,6.81345832]
[1727221595597,2.99760981,2659.3,2659.2,0.05293832]
[1727221595906,3.27922482,2659.3,2659.2,0.05255267]
[1727221596109,4.08123743,2659.3,2659.2,0.05255267]
[1727221596315,6.04510701,2659.3,2659.2,0.05255267]
[1727221599207,4.08123743,2659.3,2659.2,0.05255267]
[1727221599979,6.04510701,2659.3,2659.2,0.05255267]
[1727221600140,2.25928285,2659.3,2659.2,0.05255267]
[1727221600312,6.04496916,2659.3,2659.2,0.05255267]
[1727221600518,4.08167265,2659.3,2659.2,0.05255267]
[1727221600811,4.85025772,2659.3,2659.2,0.84275267]
[1727221601019,3.00045735,2659.3,2659.2,0.84275267]
[1727221601216,1.8223898,2659.3,2659.2,0.84275267]
[1727221601540,3.00045735,2659.3,2659.2,0.84275267]
[1727221602111,3.00045735,2659.3,2659.2,0.84248408]
[1727221602733,3.00045735,2659.3,2659.2,4.60300408]
[1727221602930,1.8223898,2659.3,2659.2,5.60067696]
[1727221603116,2.60768189,2659.3,2659.2,5.60067696]
[1727221603776,1.8223898,2659.3,2659.2,5.60067696]
[1727221604265,3.00045735,2659.3,2659.2,5.60067696]
[1727221604631,1.8223898,2659.3,2659.2,5.60067696]
[1727221604856,2.60315206,2659.3,2659.2,5.60067696]
[1727221606024,1.81800132,2659.3,2659.2,5.60067696]
[1727221606941,2.60309768,2659.3,2659.2,5.60067696]
[1727221608046,1.81800132,2659.3,2659.2,5.60067696]
[1727221609154,2.60309072,2659.3,2659.2,5.60067696]
[1727221610169,2.99606887,2659.3,2659.2,5.60067696]
[1727221610368,2.99606887,2659.3,2659.2,4.81047696]
[1727221610569,2.99606887,2659.3,2659.2,3.81280408]
[1727221610736,1.81800132,2659.3,2659.2,3.81280408]
[1727221611141,2.60259357,2659.3,2659.2,3.81280408]
[1727221612148,2.60265275,2659.3,2659.2,3.81280408]
[1727221613141,1.81761262,2659.3,2659.2,3.81280408]
[1727221614190,2.60264028,2659.3,2659.2,3.81280408]
[1727221614695,2.60261358,2659.3,2659.2,3.81280408]
[1727221615052,1.81758592,2659.3,2659.2,3.81280408]
[1727221615652,2.99565347,2659.3,2659.2,3.81280408]
[1727221615993,1.81758592,2659.3,2659.2,3.81280408]
[1727221616189,2.60251155,2659.3,2659.2,3.81280408]
[1727221617468,1.81758592,2659.3,2659.2,3.81280408]
[1727221618454,2.99565347,2659.3,2659.2,3.81280408]
[1727221618659,3.81845347,2659.3,2659.2,3.81280408]
[1727221619393,3.8183176,2659.3,2659.2,3.81280408]
[1727221619771,4.09418476,2659.3,2659.2,3.81280408]
[1727221620655,5.66478244,2659.3,2659.2,3.81280408]
[1727221620954,4.09418476,2659.3,2659.2,3.81280408]
[1727221621254,5.66478244,2659.3,2659.2,3.81280408]
[1727221621454,4.09418476,2659.3,2659.2,3.81280408]
[1727221621881,3.8176481,2659.3,2659.2,3.81280408]
[1727221622401,4.09425973,2659.3,2659.2,3.81280408]
[1727221622694,4.09442196,2659.3,2659.2,3.81280408]
[1727221623473,5.66501964,2659.3,2659.2,3.81280408]
[1727221623796,4.09442196,2659.3,2659.2,3.81280408]
[1727221624365,5.66501964,2659.3,2659.2,3.81280408]
[1727221624570,3.27162196,2659.3,2659.2,3.81280408]
[1727221626568,2.99528249,2659.3,2659.2,3.81280408]
[1727221630697,4.36065224,2659.3,2659.2,0.05228408]
[1727221630996,0.8329,2659.2,2659.0,0.5]
[1727221631200,6.14265413,2659.1,2659.0,0.5]
[1727221631383,4.18023811,2659.1,2659.0,0.5]
[1727221631583,5.43721823,2659.1,2659.0,0.5]
[1727221631971,5.43721823,2659.1,2659.0,0.54411619]
[1727221632501,5.43466275,2659.1,2659.0,0.54411619]
[1727221633412,12.58629988,2659.1,2659.0,0.54411619]
[1727221633572,14.40212166,2659.1,2659.0,0.5]
[1727221634188,14.4014911,2659.1,2659.0,0.5]
[1727221634800,13.2884264,2659.1,2659.0,0.5]
[1727221635609,10.93560901,2659.1,2659.0,0.5]
[1727221635780,13.2884264,2659.1,2659.0,0.5]
[1727221636211,10.93560901,2659.1,2659.0,0.5]
[1727221636385,9.1187746,2659.1,2659.0,0.5]
[1727221637579,9.1187746,2659.1,2659.0,0.54432673]
[1727221641617,5.3581046,2659.1,2659.0,0.54432673]
[1727221641819,5.35639513,2659.1,2659.0,0.54432673]
[1727221642023,4.83247462,2659.1,2659.0,4.30513673]
[1727221642327,2.98682216,2659.1,2659.0,4.30513673]
[1727221642733,2.98682216,2659.1,2659.0,4.26081]